[Event "Titled Tuesday Blitz April 26 Early 2022"]
[White "Lakshmi C"]
[Black "Wartiovaara, Oliver"]
[WhiteFideId "25035347"]
[BlackFideId "513024"]
[WhiteElo "1775"]
[BlackElo "1971"]
[Result "1-0"]
[Round "06"]
[TimeControl "180+1"]
[Date "2022.04.26"]
[WhiteClock "0:02:08"]
[BlackClock "0:02:32"]

1. e4 {[%clk 0:03:00]}  Nf6 {[%clk 0:03:00]} 2. e5 {[%clk 0:03:00]}  Nd5 {[%clk 0:03:01]} 3. d4 {[%clk 0:03:00]}  d6 {[%clk 0:03:00]} 4. c4 {[%clk 0:03:01]}  Nb6 {[%clk 0:03:00]} 5. f4 {[%clk 0:03:01]}  dxe5 {[%clk 0:03:00]} 6. fxe5 {[%clk 0:03:02]}  Bf5 {[%clk 0:03:01]} 7. a3 {[%clk 0:03:01]}  e6 {[%clk 0:03:01]} 8. Be3 {[%clk 0:03:01]}  Nc6 {[%clk 0:03:00]} 9. Nc3 {[%clk 0:02:54]}  Qd7 {[%clk 0:03:00]} 10. Qd2 {[%clk 0:02:52]}  O-O-O {[%clk 0:02:57]} 11. Nf3 {[%clk 0:02:41]}  Bg4 {[%clk 0:02:52]} 12. c5 {[%clk 0:02:31]}  Nd5 {[%clk 0:02:49]} 13. Bf2 {[%clk 0:02:24]}  Nxc3 {[%clk 0:02:35]} 14. Qxc3 {[%clk 0:02:11]}  Nxd4 {[%clk 0:02:31]} 15. Nxd4 {[%clk 0:02:09]}  Qxd4 {[%clk 0:02:32]} 16. Bxd4 {[%clk 0:02:09]}  Rxd4 {[%clk 0:02:32]} 17. Qxd4 {[%clk 0:02:08]} 1-0


[Site "https://www.chess.com"]

[Event "Titled Tuesday Blitz April 26 Early 2022"]
[White "Mangialardo, Tiago Carvalho"]
[Black "Polster, Christian"]
[WhiteFideId "2130718"]
[BlackFideId "12965081"]
[WhiteElo "2050"]
[BlackElo "2305"]
[Result "1-0"]
[Round "06"]
[TimeControl "180+1"]
[Date "2022.04.26"]
[WhiteClock "0:00:09"]
[BlackClock "0:00:07"]

1. e4 {[%clk 0:03:00]}  c5 {[%clk 0:02:57]} 2. Nf3 {[%clk 0:03:01]}  d6 {[%clk 0:02:56]} 3. Bb5+ {[%clk 0:03:01]}  Bd7 {[%clk 0:02:56]} 4. Bxd7+ {[%clk 0:03:02]}  Qxd7 {[%clk 0:02:54]} 5. O-O {[%clk 0:03:03]}  Nc6 {[%clk 0:02:53]} 6. c3 {[%clk 0:03:03]}  Nf6 {[%clk 0:02:52]} 7. Qe2 {[%clk 0:03:04]}  g6 {[%clk 0:02:50]} 8. d4 {[%clk 0:03:04]}  d5 {[%clk 0:02:48]} 9. exd5 {[%clk 0:02:50]}  Qxd5 {[%clk 0:02:39]} 10. c4 {[%clk 0:02:29]}  Nxd4 {[%clk 0:02:35]} 11. Nxd4 {[%clk 0:02:28]}  Qxd4 {[%clk 0:02:35]} 12. Nc3 {[%clk 0:02:24]}  Qd7 {[%clk 0:02:20]} 13. Bg5 {[%clk 0:01:56]}  Bg7 {[%clk 0:02:17]} 14. Rad1 {[%clk 0:01:54]}  Qc7 {[%clk 0:01:58]} 15. Nb5 {[%clk 0:01:31]}  Qb6 {[%clk 0:01:46]} 16. Rd6 {[%clk 0:01:20]}  Qa5 {[%clk 0:01:11]} 17. Bxf6 {[%clk 0:00:36]}  Bxf6 {[%clk 0:00:56]} 18. Rxf6 {[%clk 0:00:36]}  O-O {[%clk 0:00:49]} 19. Qxe7 {[%clk 0:00:36]}  Qxa2 {[%clk 0:00:49]} 20. Nd6 {[%clk 0:00:33]}  Qxb2 {[%clk 0:00:41]} 21. Rxf7 {[%clk 0:00:32]}  Rxf7 {[%clk 0:00:26]} 22. Qxf7+ {[%clk 0:00:28]}  Kh8 {[%clk 0:00:26]} 23. Re1 {[%clk 0:00:23]}  a5 {[%clk 0:00:20]} 24. h4 {[%clk 0:00:19]}  a4 {[%clk 0:00:19]} 25. h5 {[%clk 0:00:14]}  gxh5 {[%clk 0:00:15]} 26. Re7 {[%clk 0:00:13]}  Qb1+ {[%clk 0:00:13]} 27. Kh2 {[%clk 0:00:12]}  Qg6 {[%clk 0:00:13]} 28. Qf4 {[%clk 0:00:11]}  a3 {[%clk 0:00:13]} 29. Qe5+ {[%clk 0:00:11]}  Kg8 {[%clk 0:00:12]} 30. Nf5 {[%clk 0:00:10]}  Kf8 {[%clk 0:00:07]} 31. Qh8+ {[%clk 0:00:08]}  Qg8 {[%clk 0:00:08]} 32. Qf6+ {[%clk 0:00:09]}  Qf7 {[%clk 0:00:07]} 33. Qxf7# {[%clk 0:00:09]} 1-0


[Site "https://www.chess.com"]

[Event "Titled Tuesday Blitz April 26 Early 2022"]
[White "Manukian, Artak"]
[Black "Korchmar, Vasiliy"]
[WhiteFideId "13301373"]
[BlackFideId "24131750"]
[WhiteElo "2348"]
[BlackElo "2370"]
[Result "0-1"]
[Round "06"]
[TimeControl "180+1"]
[Date "2022.04.26"]
[WhiteClock "0:00:04"]
[BlackClock "0:02:16"]

1. e4 {[%clk 0:02:51]}  c5 {[%clk 0:02:59]} 2. Nf3 {[%clk 0:02:50]}  d6 {[%clk 0:03:00]} 3. Bb5+ {[%clk 0:02:49]}  Nd7 {[%clk 0:03:00]} 4. O-O {[%clk 0:02:47]}  a6 {[%clk 0:03:00]} 5. Bd3 {[%clk 0:02:43]}  Ngf6 {[%clk 0:03:00]} 6. Re1 {[%clk 0:02:40]}  e6 {[%clk 0:03:00]} 7. a4 {[%clk 0:02:39]}  b6 {[%clk 0:03:00]} 8. c3 {[%clk 0:02:38]}  Bb7 {[%clk 0:03:01]} 9. Bc2 {[%clk 0:02:36]}  c4 {[%clk 0:02:59]} 10. Na3 {[%clk 0:02:09]}  Rc8 {[%clk 0:02:58]} 11. Qe2 {[%clk 0:02:04]}  Qc7 {[%clk 0:02:58]} 12. Nd4 {[%clk 0:01:28]}  Be7 {[%clk 0:02:57]} 13. f3 {[%clk 0:01:23]}  O-O {[%clk 0:02:57]} 14. d3 {[%clk 0:01:20]}  cxd3 {[%clk 0:02:58]} 15. Bxd3 {[%clk 0:01:20]}  Nc5 {[%clk 0:02:59]} 16. Bc2 {[%clk 0:01:19]}  Rfe8 {[%clk 0:02:58]} 17. Qf2 {[%clk 0:01:06]}  Bf8 {[%clk 0:02:57]} 18. Bg5 {[%clk 0:01:02]}  Nh5 {[%clk 0:02:46]} 19. g4 {[%clk 0:00:58]}  Nf6 {[%clk 0:02:45]} 20. Bxf6 {[%clk 0:00:58]}  gxf6 {[%clk 0:02:46]} 21. Qh4 {[%clk 0:00:55]}  Bg7 {[%clk 0:02:46]} 22. e5 {[%clk 0:00:54]}  dxe5 {[%clk 0:02:45]} 23. Qxh7+ {[%clk 0:00:50]}  Kf8 {[%clk 0:02:45]} 24. Nb3 {[%clk 0:00:21]}  Nxb3 {[%clk 0:02:38]} 25. Bxb3 {[%clk 0:00:22]}  Bxf3 {[%clk 0:02:39]} 26. Bd1 {[%clk 0:00:17]}  Qc5+ {[%clk 0:02:39]} 27. Kf1 {[%clk 0:00:17]}  e4 {[%clk 0:02:22]} 28. h4 {[%clk 0:00:11]}  Red8 {[%clk 0:02:20]} 29. h5 {[%clk 0:00:11]}  Rd2 {[%clk 0:02:19]} 30. Be2 {[%clk 0:00:08]}  Qe3 {[%clk 0:02:17]} 31. h6 {[%clk 0:00:04]}  Bxe2+ {[%clk 0:02:16]} 0-1


[Site "https://www.chess.com"]

[Event "Titled Tuesday Blitz April 26 Early 2022"]
[White "Martin Carmona, Gaston Manuel"]
[Black "Lopez, Henry"]
[WhiteFideId "22284567"]
[BlackFideId "5203830"]
[WhiteElo "2146"]
[BlackElo "2177"]
[Result "1-0"]
[Round "06"]
[TimeControl "180+1"]
[Date "2022.04.26"]
[WhiteClock "0:00:31"]
[BlackClock "0:00:03"]

1. d4 {[%clk 0:03:00]}  Nf6 {[%clk 0:02:59]} 2. Nf3 {[%clk 0:03:01]}  d5 {[%clk 0:02:58]} 3. c4 {[%clk 0:03:01]}  c6 {[%clk 0:02:56]} 4. Nc3 {[%clk 0:03:00]}  dxc4 {[%clk 0:02:55]} 5. a4 {[%clk 0:03:00]}  Bf5 {[%clk 0:02:54]} 6. e3 {[%clk 0:02:59]}  e6 {[%clk 0:02:54]} 7. Bxc4 {[%clk 0:03:00]}  Bb4 {[%clk 0:02:54]} 8. O-O {[%clk 0:03:00]}  Nbd7 {[%clk 0:02:53]} 9. Qe2 {[%clk 0:03:01]}  O-O {[%clk 0:02:52]} 10. e4 {[%clk 0:03:00]}  Bg4 {[%clk 0:02:48]} 11. h3 {[%clk 0:02:58]}  Bh5 {[%clk 0:02:48]} 12. Bd3 {[%clk 0:02:54]}  Re8 {[%clk 0:02:38]} 13. e5 {[%clk 0:02:54]}  Nd5 {[%clk 0:02:36]} 14. Nxd5 {[%clk 0:02:54]}  cxd5 {[%clk 0:02:36]} 15. Qe3 {[%clk 0:02:54]}  Bg6 {[%clk 0:02:28]} 16. Bxg6 {[%clk 0:02:52]}  fxg6 {[%clk 0:02:26]} 17. h4 {[%clk 0:02:48]}  Rc8 {[%clk 0:02:20]} 18. Ng5 {[%clk 0:02:41]}  Nf8 {[%clk 0:02:19]} 19. Qf3 {[%clk 0:02:32]}  Qe7 {[%clk 0:02:12]} 20. h5 {[%clk 0:02:18]}  gxh5 {[%clk 0:01:56]} 21. Qxh5 {[%clk 0:02:19]}  h6 {[%clk 0:01:56]} 22. Nh3 {[%clk 0:02:19]}  Qf7 {[%clk 0:01:55]} 23. Qg4 {[%clk 0:02:11]}  Ng6 {[%clk 0:01:53]} 24. Be3 {[%clk 0:02:02]}  a6 {[%clk 0:01:38]} 25. Rac1 {[%clk 0:01:58]}  Qf5 {[%clk 0:01:30]} 26. Qxf5 {[%clk 0:01:45]}  exf5 {[%clk 0:01:29]} 27. f3 {[%clk 0:01:46]}  Kf7 {[%clk 0:01:25]} 28. Kf2 {[%clk 0:01:41]}  Ke6 {[%clk 0:01:22]} 29. Ke2 {[%clk 0:01:42]}  Be7 {[%clk 0:01:13]} 30. Kd3 {[%clk 0:01:41]}  Rf8 {[%clk 0:01:03]} 31. Bf4 {[%clk 0:01:37]}  Rfd8 {[%clk 0:00:58]} 32. Bd2 {[%clk 0:01:34]}  Rf8 {[%clk 0:00:51]} 33. g3 {[%clk 0:01:31]}  Kd7 {[%clk 0:00:45]} 34. a5 {[%clk 0:01:17]}  Rxc1 {[%clk 0:00:41]} 35. Rxc1 {[%clk 0:01:15]}  Rc8 {[%clk 0:00:42]} 36. Ra1 {[%clk 0:01:11]}  Rc4 {[%clk 0:00:37]} 37. b3 {[%clk 0:01:10]}  Rc6 {[%clk 0:00:34]} 38. Rg1 {[%clk 0:01:06]}  Ke6 {[%clk 0:00:18]} 39. g4 {[%clk 0:01:03]}  fxg4 {[%clk 0:00:18]} 40. Rxg4 {[%clk 0:01:04]}  Kf7 {[%clk 0:00:18]} 41. f4 {[%clk 0:00:55]}  Nh4 {[%clk 0:00:17]} 42. Ng1 {[%clk 0:00:48]}  Nf5 {[%clk 0:00:17]} 43. Nf3 {[%clk 0:00:47]}  Rc8 {[%clk 0:00:14]} 44. Rg1 {[%clk 0:00:46]}  g6 {[%clk 0:00:10]} 45. Be1 {[%clk 0:00:44]}  Rg8 {[%clk 0:00:07]} 46. Bd2 {[%clk 0:00:44]}  Ke6 {[%clk 0:00:07]} 47. Rc1 {[%clk 0:00:44]}  Kd7 {[%clk 0:00:07]} 48. e6+ {[%clk 0:00:39]}  Kxe6 {[%clk 0:00:07]} 49. Rc7 {[%clk 0:00:39]}  Rb8 {[%clk 0:00:06]} 50. Ne5 {[%clk 0:00:38]}  Bd6 {[%clk 0:00:06]} 51. Rh7 {[%clk 0:00:37]}  Bxe5 {[%clk 0:00:05]} 52. fxe5 {[%clk 0:00:38]}  g5 {[%clk 0:00:05]} 53. b4 {[%clk 0:00:36]}  Rg8 {[%clk 0:00:03]} 54. Rxb7 {[%clk 0:00:35]}  g4 {[%clk 0:00:03]} 55. Rb6+ {[%clk 0:00:35]}  Ke7 {[%clk 0:00:03]} 56. Rf6 {[%clk 0:00:31]} 1-0


[Site "https://www.chess.com"]

[Event "Titled Tuesday Blitz April 26 Early 2022"]
[White "Martin, Lewis"]
[Black "Antonio, Jorge Carlos"]
[WhiteFideId "410551"]
[BlackFideId "113190"]
[WhiteElo "2145"]
[BlackElo "2247"]
[Result "0-1"]
[Round "06"]
[TimeControl "180+1"]
[Date "2022.04.26"]
[WhiteClock "0:01:01"]
[BlackClock "0:00:51"]

1. e4 {[%clk 0:02:42]}  c5 {[%clk 0:02:58]} 2. Nf3 {[%clk 0:02:42]}  e6 {[%clk 0:02:59]} 3. d4 {[%clk 0:02:43]}  cxd4 {[%clk 0:02:59]} 4. Nxd4 {[%clk 0:02:44]}  Nc6 {[%clk 0:02:59]} 5. Nc3 {[%clk 0:02:44]}  Bb4 {[%clk 0:02:57]} 6. Ne2 {[%clk 0:02:33]}  Nf6 {[%clk 0:02:55]} 7. a3 {[%clk 0:02:30]}  Bxc3+ {[%clk 0:02:51]} 8. Nxc3 {[%clk 0:02:30]}  d5 {[%clk 0:02:51]} 9. exd5 {[%clk 0:02:30]}  exd5 {[%clk 0:02:23]} 10. Bb5 {[%clk 0:02:27]}  Be6 {[%clk 0:02:21]} 11. O-O {[%clk 0:02:27]}  O-O {[%clk 0:02:21]} 12. Bg5 {[%clk 0:02:25]}  a6 {[%clk 0:02:21]} 13. Ba4 {[%clk 0:02:20]}  h6 {[%clk 0:02:16]} 14. Bh4 {[%clk 0:02:19]}  b5 {[%clk 0:02:09]} 15. Bb3 {[%clk 0:02:18]}  d4 {[%clk 0:02:05]} 16. Ne4 {[%clk 0:02:10]}  g5 {[%clk 0:01:55]} 17. Nxg5 {[%clk 0:02:07]}  hxg5 {[%clk 0:01:52]} 18. Bxg5 {[%clk 0:02:07]}  Bxb3 {[%clk 0:01:45]} 19. cxb3 {[%clk 0:02:05]}  Qd6 {[%clk 0:01:45]} 20. Qf3 {[%clk 0:02:00]}  Nh7 {[%clk 0:01:35]} 21. Bf4 {[%clk 0:01:58]}  Qd7 {[%clk 0:01:32]} 22. Rac1 {[%clk 0:01:56]}  Ne7 {[%clk 0:01:28]} 23. Rc7 {[%clk 0:01:49]}  Qe6 {[%clk 0:01:25]} 24. Qg3+ {[%clk 0:01:31]}  Ng6 {[%clk 0:01:24]} 25. Rfc1 {[%clk 0:01:26]}  Nf6 {[%clk 0:01:21]} 26. h4 {[%clk 0:01:17]}  Qf5 {[%clk 0:01:17]} 27. Bg5 {[%clk 0:01:11]}  Ne4 {[%clk 0:01:13]} 28. Qd3 {[%clk 0:01:03]}  Qxf2+ {[%clk 0:00:58]} 29. Kh2 {[%clk 0:01:03]}  Nxg5 {[%clk 0:00:50]} 30. hxg5 {[%clk 0:01:01]}  Kg7 {[%clk 0:00:51]} 0-1


[Site "https://www.chess.com"]

[Event "Titled Tuesday Blitz April 26 Early 2022"]
[White "Martinez Alcantara, Jose Eduardo"]
[Black "Darini, Pouria"]
[WhiteFideId "3805662"]
[BlackFideId "12502200"]
[WhiteElo "2690"]
[BlackElo "2489"]
[Result "1-0"]
[Round "06"]
[TimeControl "180+1"]
[Date "2022.04.26"]
[WhiteClock "0:00:26"]
[BlackClock "0:00:05"]

1. e4 {[%clk 0:03:00]}  c5 {[%clk 0:02:59]} 2. Nf3 {[%clk 0:03:00]}  d6 {[%clk 0:02:59]} 3. c3 {[%clk 0:03:00]}  Nf6 {[%clk 0:02:59]} 4. h3 {[%clk 0:03:01]}  Nbd7 {[%clk 0:02:59]} 5. Bd3 {[%clk 0:03:01]}  b6 {[%clk 0:02:59]} 6. Bc2 {[%clk 0:03:01]}  Bb7 {[%clk 0:03:00]} 7. Qe2 {[%clk 0:03:02]}  Rc8 {[%clk 0:03:00]} 8. O-O {[%clk 0:03:02]}  Qc7 {[%clk 0:03:00]} 9. Na3 {[%clk 0:03:02]}  e5 {[%clk 0:02:58]} 10. d4 {[%clk 0:03:01]}  cxd4 {[%clk 0:02:53]} 11. cxd4 {[%clk 0:03:00]}  Be7 {[%clk 0:02:52]} 12. Bd2 {[%clk 0:02:50]}  O-O {[%clk 0:02:48]} 13. Rac1 {[%clk 0:02:49]}  Qb8 {[%clk 0:02:43]} 14. Rfe1 {[%clk 0:02:48]}  a6 {[%clk 0:02:40]} 15. Nc4 {[%clk 0:02:38]}  Rfe8 {[%clk 0:02:22]} 16. d5 {[%clk 0:02:29]}  Bf8 {[%clk 0:02:06]} 17. Be3 {[%clk 0:02:27]}  a5 {[%clk 0:01:23]} 18. Bd3 {[%clk 0:02:08]}  Ba6 {[%clk 0:01:24]} 19. Ncd2 {[%clk 0:01:57]}  Bxd3 {[%clk 0:01:21]} 20. Qxd3 {[%clk 0:01:57]}  Nc5 {[%clk 0:01:12]} 21. Bxc5 {[%clk 0:01:55]}  Rxc5 {[%clk 0:01:12]} 22. Rxc5 {[%clk 0:01:52]}  bxc5 {[%clk 0:01:12]} 23. Nc4 {[%clk 0:01:52]}  a4 {[%clk 0:01:07]} 24. Qc2 {[%clk 0:01:47]}  Qb5 {[%clk 0:01:07]} 25. Rb1 {[%clk 0:01:41]}  Ra8 {[%clk 0:01:06]} 26. Nfd2 {[%clk 0:01:40]}  g6 {[%clk 0:01:05]} 27. b3 {[%clk 0:01:40]}  a3 {[%clk 0:00:47]} 28. Re1 {[%clk 0:01:35]}  Qb4 {[%clk 0:00:47]} 29. Re2 {[%clk 0:01:35]}  h5 {[%clk 0:00:41]} 30. g3 {[%clk 0:01:31]}  Ra6 {[%clk 0:00:40]} 31. Kg2 {[%clk 0:01:29]}  Bh6 {[%clk 0:00:40]} 32. Nf3 {[%clk 0:01:29]}  Nd7 {[%clk 0:00:37]} 33. Ne1 {[%clk 0:01:25]}  Qb8 {[%clk 0:00:34]} 34. Nd3 {[%clk 0:01:24]}  Nb6 {[%clk 0:00:33]} 35. h4 {[%clk 0:01:18]}  Nxc4 {[%clk 0:00:33]} 36. Qxc4 {[%clk 0:01:19]}  Ra5 {[%clk 0:00:33]} 37. Rc2 {[%clk 0:01:14]}  Kg7 {[%clk 0:00:28]} 38. Qc3 {[%clk 0:01:11]}  Ra7 {[%clk 0:00:25]} 39. f4 {[%clk 0:01:09]}  f6 {[%clk 0:00:24]} 40. Rf2 {[%clk 0:01:05]}  Rf7 {[%clk 0:00:17]} 41. fxe5 {[%clk 0:00:49]}  fxe5 {[%clk 0:00:18]} 42. Rxf7+ {[%clk 0:00:50]}  Kxf7 {[%clk 0:00:19]} 43. Qa5 {[%clk 0:00:50]}  Be3 {[%clk 0:00:08]} 44. Ne1 {[%clk 0:00:42]}  Qc8 {[%clk 0:00:05]} 45. Nf3 {[%clk 0:00:40]}  Qg4 {[%clk 0:00:05]} 46. Qc7+ {[%clk 0:00:39]}  Kg8 {[%clk 0:00:04]} 47. Qxd6 {[%clk 0:00:36]}  Qxe4 {[%clk 0:00:04]} 48. Qe6+ {[%clk 0:00:35]}  Kg7 {[%clk 0:00:04]} 49. Qxe5+ {[%clk 0:00:31]}  Qxe5 {[%clk 0:00:04]} 50. Nxe5 {[%clk 0:00:31]}  Bd4 {[%clk 0:00:05]} 51. Nc4 {[%clk 0:00:31]}  Bb2 {[%clk 0:00:05]} 52. Kf3 {[%clk 0:00:31]}  Kf6 {[%clk 0:00:05]} 53. Ke4 {[%clk 0:00:31]}  Bc3 {[%clk 0:00:05]} 54. Nxa3 {[%clk 0:00:29]}  Be1 {[%clk 0:00:05]} 55. Kf4 {[%clk 0:00:27]}  Bd2+ {[%clk 0:00:05]} 56. Kf3 {[%clk 0:00:27]}  Bb4 {[%clk 0:00:04]} 57. Nc4 {[%clk 0:00:27]}  Bc3 {[%clk 0:00:05]} 58. a4 {[%clk 0:00:28]}  Ke7 {[%clk 0:00:05]} 59. Kf4 {[%clk 0:00:26]}  Kf6 {[%clk 0:00:05]} 60. a5 {[%clk 0:00:26]} 1-0


[Site "https://www.chess.com"]

[Event "Titled Tuesday Blitz April 26 Early 2022"]
[White "Migot, Tangi"]
[Black "Fernandez Siles, Luis"]
[WhiteFideId "662445"]
[BlackFideId "2209420"]
[WhiteElo "2539"]
[BlackElo "2212"]
[Result "1-0"]
[Round "06"]
[TimeControl "180+1"]
[Date "2022.04.26"]
[WhiteClock "0:00:39"]
[BlackClock "0:00:01"]

1. e4 {[%clk 0:03:00]}  c5 {[%clk 0:02:59]} 2. Nf3 {[%clk 0:03:01]}  Nc6 {[%clk 0:02:59]} 3. d4 {[%clk 0:03:01]}  cxd4 {[%clk 0:03:00]} 4. Nxd4 {[%clk 0:03:02]}  Nf6 {[%clk 0:03:00]} 5. Nc3 {[%clk 0:03:02]}  e5 {[%clk 0:03:01]} 6. Ndb5 {[%clk 0:03:02]}  d6 {[%clk 0:03:02]} 7. Bg5 {[%clk 0:03:02]}  a6 {[%clk 0:03:02]} 8. Na3 {[%clk 0:03:02]}  b5 {[%clk 0:03:03]} 9. Nd5 {[%clk 0:03:02]}  Be7 {[%clk 0:03:03]} 10. Bxf6 {[%clk 0:03:03]}  Bxf6 {[%clk 0:03:04]} 11. c4 {[%clk 0:03:03]}  b4 {[%clk 0:03:04]} 12. Nc2 {[%clk 0:03:03]}  a5 {[%clk 0:03:05]} 13. Qf3 {[%clk 0:02:59]}  Bg5 {[%clk 0:02:50]} 14. h4 {[%clk 0:02:59]}  Bh6 {[%clk 0:02:49]} 15. g4 {[%clk 0:02:58]}  Bf4 {[%clk 0:02:48]} 16. Nxf4 {[%clk 0:02:54]}  exf4 {[%clk 0:02:49]} 17. Qxf4 {[%clk 0:02:54]}  Ne5 {[%clk 0:02:44]} 18. Be2 {[%clk 0:02:50]}  Be6 {[%clk 0:02:31]} 19. Ne3 {[%clk 0:02:44]}  Qb6 {[%clk 0:02:08]} 20. Rd1 {[%clk 0:02:35]}  O-O {[%clk 0:01:48]} 21. Qg3 {[%clk 0:02:34]}  Rac8 {[%clk 0:01:44]} 22. b3 {[%clk 0:02:32]}  Nd7 {[%clk 0:01:13]} 23. Qxd6 {[%clk 0:02:26]}  Rc6 {[%clk 0:01:10]} 24. Qd4 {[%clk 0:02:17]}  Nc5 {[%clk 0:01:08]} 25. Nd5 {[%clk 0:02:13]}  Qd8 {[%clk 0:01:00]} 26. g5 {[%clk 0:02:04]}  Kh8 {[%clk 0:00:57]} 27. f4 {[%clk 0:02:00]}  f5 {[%clk 0:00:43]} 28. e5 {[%clk 0:01:40]}  Bc8 {[%clk 0:00:36]} 29. Bf3 {[%clk 0:01:37]}  Ne6 {[%clk 0:00:35]} 30. Qe3 {[%clk 0:01:32]}  Rc5 {[%clk 0:00:32]} 31. Nxb4 {[%clk 0:01:12]}  Qb6 {[%clk 0:00:26]} 32. Nd5 {[%clk 0:01:12]}  Qa7 {[%clk 0:00:22]} 33. O-O {[%clk 0:01:06]}  Qf7 {[%clk 0:00:08]} 34. a3 {[%clk 0:00:56]}  Bb7 {[%clk 0:00:08]} 35. Rc1 {[%clk 0:00:52]}  h6 {[%clk 0:00:04]} 36. b4 {[%clk 0:00:51]}  axb4 {[%clk 0:00:04]} 37. axb4 {[%clk 0:00:52]}  Rcc8 {[%clk 0:00:04]} 38. b5 {[%clk 0:00:44]}  g6 {[%clk 0:00:04]} 39. c5 {[%clk 0:00:41]}  hxg5 {[%clk 0:00:03]} 40. hxg5 {[%clk 0:00:41]}  Qh7 {[%clk 0:00:03]} 41. Kg2 {[%clk 0:00:40]}  Qh4 {[%clk 0:00:01]} 42. Rh1 {[%clk 0:00:39]}  Nxf4+ {[%clk 0:00:01]} 43. Qxf4 {[%clk 0:00:39]} 1-0


[Site "https://www.chess.com"]

[Event "Titled Tuesday Blitz April 26 Early 2022"]
[White "Miszler, Levente"]
[Black "Castellanos Hernandez, Emilio Au"]
[WhiteFideId "763276"]
[BlackFideId "5114179"]
[WhiteElo "1966"]
[BlackElo "2021"]
[Result "1-0"]
[Round "06"]
[TimeControl "180+1"]
[Date "2022.04.26"]
[WhiteClock "0:00:46"]
[BlackClock "0:01:52"]

1. Nf3 {[%clk 0:03:00]}  Nf6 {[%clk 0:02:58]} 2. c4 {[%clk 0:03:00]}  c5 {[%clk 0:02:59]} 3. g3 {[%clk 0:02:57]}  Nc6 {[%clk 0:03:00]} 4. Bg2 {[%clk 0:02:56]}  g6 {[%clk 0:03:00]} 5. O-O {[%clk 0:02:54]}  Bg7 {[%clk 0:03:01]} 6. Nc3 {[%clk 0:02:55]}  e5 {[%clk 0:03:01]} 7. d3 {[%clk 0:02:53]}  O-O {[%clk 0:02:56]} 8. a3 {[%clk 0:02:54]}  d5 {[%clk 0:02:57]} 9. cxd5 {[%clk 0:02:53]}  Nxd5 {[%clk 0:02:58]} 10. Nxd5 {[%clk 0:02:53]}  Qxd5 {[%clk 0:02:59]} 11. Be3 {[%clk 0:02:53]}  b6 {[%clk 0:02:54]} 12. Nd4 {[%clk 0:02:50]}  Qxg2+ {[%clk 0:02:48]} 13. Kxg2 {[%clk 0:02:51]}  exd4 {[%clk 0:02:49]} 14. Bf4 {[%clk 0:02:49]}  Bb7 {[%clk 0:02:49]} 15. Kg1 {[%clk 0:02:48]}  Ne7 {[%clk 0:02:44]} 16. b4 {[%clk 0:02:42]}  Rac8 {[%clk 0:02:42]} 17. bxc5 {[%clk 0:02:41]}  bxc5 {[%clk 0:02:43]} 18. Bd6 {[%clk 0:02:39]}  Rfe8 {[%clk 0:02:41]} 19. Bxe7 {[%clk 0:02:37]}  Rxe7 {[%clk 0:02:42]} 20. Rb1 {[%clk 0:02:33]}  Rce8 {[%clk 0:02:40]} 21. Qa4 {[%clk 0:02:30]}  Bd5 {[%clk 0:02:37]} 22. Rfe1 {[%clk 0:02:25]}  Bf8 {[%clk 0:02:36]} 23. Rb2 {[%clk 0:02:17]}  Kg7 {[%clk 0:02:35]} 24. Qc2 {[%clk 0:02:05]}  Re5 {[%clk 0:02:30]} 25. f4 {[%clk 0:01:58]}  Re3 {[%clk 0:02:28]} 26. Kf2 {[%clk 0:01:58]}  h5 {[%clk 0:02:27]} 27. Qa4 {[%clk 0:01:50]}  h4 {[%clk 0:02:27]} 28. Qxa7 {[%clk 0:01:49]}  hxg3+ {[%clk 0:02:27]} 29. hxg3 {[%clk 0:01:50]}  g5 {[%clk 0:02:27]} 30. Qd7 {[%clk 0:01:41]}  Ba8 {[%clk 0:02:18]} 31. Qf5 {[%clk 0:01:30]}  R8e6 {[%clk 0:02:10]} 32. Rb8 {[%clk 0:01:17]}  Bf3 {[%clk 0:01:57]} 33. Qxg5+ {[%clk 0:01:02]}  Rg6 {[%clk 0:01:52]} 34. Qd8 {[%clk 0:00:46]} 1-0


[Site "https://www.chess.com"]

[Event "Titled Tuesday Blitz April 26 Early 2022"]
[White "Moiseenko, Alexander"]
[Black "Stevens, Christian"]
[WhiteFideId "14102560"]
[BlackFideId "2604450"]
[WhiteElo "2793"]
[BlackElo "2536"]
[Result "1-0"]
[Round "06"]
[TimeControl "180+1"]
[Date "2022.04.26"]
[WhiteClock "0:00:21"]
[BlackClock "0:00:00"]

1. d4 {[%clk 0:03:00]}  Nf6 {[%clk 0:02:39]} 2. Bg5 {[%clk 0:02:58]}  Ne4 {[%clk 0:02:36]} 3. Bf4 {[%clk 0:02:58]}  d5 {[%clk 0:02:37]} 4. f3 {[%clk 0:02:58]}  Nf6 {[%clk 0:02:22]} 5. e4 {[%clk 0:02:58]}  e6 {[%clk 0:02:22]} 6. e5 {[%clk 0:02:58]}  Nfd7 {[%clk 0:02:21]} 7. Be3 {[%clk 0:02:58]}  c5 {[%clk 0:02:20]} 8. c3 {[%clk 0:02:59]}  Nc6 {[%clk 0:02:19]} 9. f4 {[%clk 0:02:59]}  Qb6 {[%clk 0:02:09]} 10. Qd2 {[%clk 0:02:58]}  Na5 {[%clk 0:01:25]} 11. Nf3 {[%clk 0:02:40]}  Nc4 {[%clk 0:01:18]} 12. Bxc4 {[%clk 0:02:38]}  dxc4 {[%clk 0:01:17]} 13. O-O {[%clk 0:02:27]}  Qc6 {[%clk 0:01:12]} 14. f5 {[%clk 0:02:15]}  Nb6 {[%clk 0:00:58]} 15. dxc5 {[%clk 0:01:52]}  Nd5 {[%clk 0:00:58]} 16. f6 {[%clk 0:01:22]}  Bxc5 {[%clk 0:00:49]} 17. Bxc5 {[%clk 0:01:20]}  Qxc5+ {[%clk 0:00:49]} 18. Kh1 {[%clk 0:01:17]}  gxf6 {[%clk 0:00:44]} 19. exf6 {[%clk 0:01:16]}  Bd7 {[%clk 0:00:28]} 20. Ne5 {[%clk 0:01:08]}  Rg8 {[%clk 0:00:28]} 21. Na3 {[%clk 0:01:02]}  b5 {[%clk 0:00:20]} 22. Rae1 {[%clk 0:01:00]}  Bc6 {[%clk 0:00:13]} 23. Qf2 {[%clk 0:00:41]}  Qxf2 {[%clk 0:00:12]} 24. Rxf2 {[%clk 0:00:41]}  Bd7 {[%clk 0:00:08]} 25. Nc2 {[%clk 0:00:34]}  a6 {[%clk 0:00:06]} 26. Ne3 {[%clk 0:00:33]}  Nxe3 {[%clk 0:00:05]} 27. Rxe3 {[%clk 0:00:34]}  Bc8 {[%clk 0:00:04]} 28. Rd2 {[%clk 0:00:33]}  Bb7 {[%clk 0:00:04]} 29. Kg1 {[%clk 0:00:29]}  Bd5 {[%clk 0:00:04]} 30. Rg3 {[%clk 0:00:24]}  Rxg3 {[%clk 0:00:03]} 31. hxg3 {[%clk 0:00:25]}  Rd8 {[%clk 0:00:02]} 32. Rd4 {[%clk 0:00:22]}  Kf8 {[%clk 0:00:02]} 33. Rh4 {[%clk 0:00:21]}  Rd6 {[%clk 0:00:01]} 34. Rxh7 {[%clk 0:00:21]}  Kg8 {[%clk 0:00:00]} 35. Rg7+ {[%clk 0:00:21]} 1-0


[Site "https://www.chess.com"]